Cogmind - Beta 15 @@@ ROGUE MODE // 2025.08.09 @ 13:07:27 Player: FrigidRock Result: Destroyed by Piercing Trap Performance ------------- Evolutions (0) 0 Regions Visited (3) 600 Robots Destroyed (33) 165 Value Destroyed (807) 807 Prototype IDs (0) 0 Alien Tech Used (0) 0 Bonus (30) 30 TOTAL SCORE: 1602 Bonus ------- Follower Combat Kills 30 Cogmind --------- Core Integrity 0/250 Matter 236/300 Energy 263/265 System Corruption 1% Temperature Cool (1) Movement Treading (320) Ox2 Location -10/Subcaves Parts ------- > --- POWER (1) -------- Reinforced Ion Engine > --- PROPULSION (2) --- Improved Treads > --- UTILITY (2) ------ Medium Storage Unit Large Storage Unit > --- WEAPON (2) ------- Barrage Gun Slug Cannon > --- INVENTORY (15) --- Reinforced Ion Engine Reinforced Ion Engine Reinforced Ion Engine Improved Treads Improved Treads Improved Terrain Scanner Riot Gun Riot Gun Battle Cannon Subdweller Shrapnel Launcher Shrapnel Trap Peak State ------------ > --- POWER ------------ Reinforced Ion Engine > --- PROPULSION ------- Improved Treads Improved Treads > --- UTILITY ---------- Medium Storage Unit Large Storage Unit > --- WEAPON ----------- Barrage Gun Slug Cannon > --- INVENTORY -------- Reinforced Ion Engine Reinforced Ion Engine Reinforced Ion Engine Improved Treads Improved Treads Improved Terrain Scanner Riot Gun Riot Gun Battle Cannon Subdweller Shrapnel Launcher Shrapnel Trap [Rating: 17] Favorites ----------- Power Reinforced Ion Engine Engine Reinforced Ion Engine Propulsion Improved Treads Treads Improved Treads Leg Aluminum Leg Utility Large Storage Unit Device Shield Generator Storage Large Storage Unit Weapon Heavy Assault Rifle Energy Gun Riot Gun Ballistic Gun Heavy Assault Rifle Ballistic Cannon Slug Cannon Build | -11 -10 -10 -10 ------- Run | Yrd Mat Min Sub Slots Evolved . | . . . . Power . | . . . . Propulsion . | . . . . Utility . | . . . . Weapon . | . . . . Parts Attached 25 | 7 11 . 7 Power 2 | 1 1 . . Engine 2 | 1 1 . . Core . | . . . . Reactor . | . . . . Propulsion 7 | 2 4 . 1 Treads 5 | . 4 . 1 Leg 2 | 2 . . . Wheel . | . . . . Hover . | . . . . Flight . | . . . . Utility 7 | 2 4 . 1 Device 4 | 1 3 . . Storage 3 | 1 1 . 1 Processor . | . . . . Hackware . | . . . . Protection . | . . . . Artifact . | . . . . Weapon 9 | 2 2 . 5 Energy Gun 1 | . . . 1 Energy Cannon . | . . . . Ballistic Gun 6 | 2 2 . 2 Ballistic Cannon 2 | . . . 2 Launcher . | . . . . Special Weapon . | . . . . Impact Weapon . | . . . . Slashing Weapon . | . . . . Piercing Weapon . | . . . . Special Melee Weapon . | . . . . Unidentified Prototypes . | . . . . Parts Lost 6 | . 1 . 5 Power . | . . . . Propulsion 2 | . . . 2 Utility 2 | . 1 . 1 Weapon 2 | . . . 2 Highest Loss Streak 3 | . 1 . 3 To Critical Strikes . | . . . . Average Backups 11 | . 12 13 11 Power 2 | . 2 3 3 Propulsion 2 | . 2 3 2 Utility 2 | . 2 2 1 Weapon 4 | . 4 5 4 Tool/Special . | . . . . Unused Backups 10 | . . . 10 Power 3 | . . . 3 Propulsion 1 | . . . 1 Utility 1 | . . . 1 Weapon 5 | . . . 5 Tool/Special . | . . . . Average Slot Usage (%) 95 | . 99 100 91 Engine 14 | . 14 14 14 Treads 27 | . 27 28 27 Device 9 | . 13 14 6 Storage 14 | . 14 14 14 Energy Gun 2 | . . . 4 Ballistic Gun 20 | . 28 28 15 Ballistic Cannon 4 | . . . 7 Peak Build Rating 17 | 7 15 15 17 Average Rating 14 | 5 14 15 15 On Entrance 9 | . 7 15 15 Naked Turns . | . . . . Heaviest Build 50 | 14 38 38 50 Greatest Support 46 | 20 46 46 46 Greatest Overweight (x) 2 | 1 1 . 2 Average Overweight (x) . | . . . . Largest Inventory Capacity 15 | 8 15 15 15 Average Capacity 14 | 7 13 15 15 Most Carried 15 | 2 15 13 15 Average Carried 12 | . 12 13 13 Final Capacity 15 | 8 15 15 15 Final Carried 13 | 2 13 13 11 Class Distribution -------------------- 100% | Mutant Dominant Class ---------------- Mutant | -10/Materials Mutant | -10/Mines Mutant | -10/Subcaves Resources | -11 -10 -10 -10 ----------- Run | Yrd Mat Min Sub Matter Collected 967 | 234 399 . 334 Remotely . | . . . . Salvage Created 1074 | 162 450 . 462 Parts 84 | 9 36 . 39 Haulers Intercepted 1 | . 1 . . Recyclers Shooed 1 | 1 . . . Parts Field Recycled . | . . . . Retrieved Matter . | . . . . Parts Self-Destructed 15 | . . . 15 Prevented 1 | . . . 1 Kills | -11 -10 -10 -10 ------- Run | Yrd Mat Min Sub Combat Hostiles Destroyed 26 | . 14 . 12 Guns 22 | . 14 . 8 Cannons 2 | . . . 2 AOE 1 | . . . 1 Classes Destroyed 7 | 2 3 . 2 Tunneler 3 | 3 . . . Hauler 1 | . 1 . . Recycler 1 | 1 . . . Turret 2 | . . . 2 Swarmer 10 | . 6 . 4 Grunt 8 | . 8 . . Subdweller 8 | . . . 8 Best Kill Streak 4 | 4 3 . 2 Combat Bots Only 3 | . 3 . 2 Max Kills in Single Turn 1 | 1 1 . 1 Gunslinging . | . . . . Exploded 1 | . . . 1 Melee . | . . . . Uniques/NPCs Destroyed . | . . . . Combat | -11 -10 -10 -10 -------- Run | Yrd Mat Min Sub Hostile Shots Fired 197 | . 58 . 139 Missed 64 | . 14 . 50 Hits 133 | . 44 . 89 Projectile 133 | . 44 . 89 AOE 1 | . . . 1 Critical Strikes 1 | . 1 . . Damage Taken 1383 | . 365 . 1018 Core 253 | . 51 . 202 Absorbed by Shields 260 | . 140 . 120 Core Remaining (%) 100 | 100 . . . Volleys Fired 103 | 9 41 . 53 Largest 2 | 2 2 . 2 Hottest 73 | 40 46 . 73 Shots Fired 202 | 18 84 . 100 Gun 179 | 18 84 . 77 Cannon 23 | . . . 23 Launcher . | . . . . Special . | . . . . Kinetic 185 | 18 84 . 83 Thermal . | . . . . Explosive . | . . . . Electromagnetic 17 | . . . 17 Robot Hit Streak 13 | 5 9 . 13 Robot Miss Streak 10 | 1 4 . 10 Penetration Max . | . . . . Secondary Targets 4 | . 1 . 3 Max Gunslinging Chain 1 | . 1 . 1 Shots Hit Robots 117 | 11 56 . 50 Core Hits 53 | 5 25 . 23 Critical Kills 1 | 1 . . . Critical Parts Destroyed 1 | . 1 . . Critical Strikes 3 | 1 1 . 1 Destroy 3 | 1 1 . 1 Melee Attacks . | . . . . Impact . | . . . . Slashing . | . . . . Piercing . | . . . . Sneak Attacks . | . . . . Combat Hostiles . | . . . . Follow-up Attacks . | . . . . Damage Inflicted 1734 | 117 745 . 872 Guns 1461 | 117 745 . 599 Cannons 201 | . . . 201 Explosions 72 | . . . 72 Melee . | . . . . Ramming . | . . . . Kinetic 1529 | 117 745 . 667 Thermal 72 | . . . 72 Explosive . | . . . . Electromagnetic 133 | . . . 133 Impact . | . . . . Slashing . | . . . . Piercing . | . . . . Highest Corruption 1 | . 1 1 1 Average Corruption 1 | . 1 1 1 Corruption Purged . | . . . . Corruption Blocked . | . . . . Effects 28 | . 4 1 23 Message Errors 9 | . 2 . 7 Matter Fused 4 | . . 1 3 Energy Discharges 3 | . . . 3 Data Loss (minor) 5 | . . . 5 Data Loss (major) 1 | . . . 1 Misfires 4 | . 2 . 2 Alerts 1 | . . . 1 Weapon Failures 1 | . . . 1 Overload Shots . | . . . . Overflow Damage . | . . . . Projectiles . | . . . . Explosions . | . . . . Melee . | . . . . Knockbacks 2 | . . . 2 Impact . | . . . . Kinetic 2 | . . . 2 Secondary . | . . . . Self-Inflicted Damage 26 | . . . 26 Shots 1 | . . . 1 Rammed . | . . . . Targets Rammed . | . . . . Kicked . | . . . . Crushed . | . . . . Highest Temperature 43 | . 43 . 26 Average Temperature 10 | . 9 . 12 Received Heat Transfer 430 | . 124 . 306 Siege Activations . | . . . . Martial Activations . | . . . . Shielding Activations . | . . . . Robots Disrupted . | . . . . Combat Hostiles . | . . . . Robots Corrupted . | . . . . Combat Hostiles . | . . . . Parts Fried . | . . . . Impact Corruptions . | . . . . Robots Melted . | . . . . Combat Hostiles . | . . . . Parts Melted . | . . . . Heat Transferred 100 | . . . 100 Parts Sabotaged . | . . . . Parts Stolen . | . . . . Parts Stripped . | . . . . Power Chain Reactions 1 | . . . 1 Alert | -11 -10 -10 -10 ------- Run | Yrd Mat Min Sub Maximum Alert Level . | . . . . Low Security (%) 100 | 100 100 100 . Level 1 . | . . . . Level 2 . | . . . . Level 3 . | . . . . Level 4 . | . . . . Level 5 . | . . . . High Security . | . . . . Max Security . | . . . . Peak Influence 126 | 10 126 27 . Initial 27 | . . 27 . Average 38 | 1 47 4 . Influence Increases 616 | 20 371 . 225 Destroy 0b10 Robot/C 400 | . 280 . 120 Destroy 0b10 Robot/NC 25 | 20 5 . . Destroy Leader 52 | . 52 . . Destroy Structure 4 | . 4 . . Lose Combat Pursuer 135 | . 30 . 105 Influence Decreases 616 | 20 299 72 225 Entered New Map 45 | . . 45 . Time Decay 521 | 20 289 27 185 Lost Part 50 | . 10 . 40 Squads Dispatched 1 | . 1 . . Investigation 1 | . 1 . . Extermination . | . . . . Reinforcement . | . . . . Assault . | . . . . Garrison . | . . . . Intercept . | . . . . Searches Triggered . | . . . . Construction Impeded . | . . . . Haulers Reinforced . | . . . . Active Scanning Responses . | . . . . Cargo Convoy Interrupts . | . . . . Stealth | -11 -10 -10 -10 --------- Run | Yrd Mat Min Sub Distress Signals . | . . . . Communications Jammed . | . . . . Distress Signals . | . . . . Times Spotted 43 | . 24 . 19 Peak Tracking Total 5 | . 5 . 3 Tactical Retreats 5 | . 2 . 3 Traps | -11 -10 -10 -10 ------- Run | Yrd Mat Min Sub Traps Triggered 4 | . 2 . 2 Indirectly . | . . . . Trap Hack Attempts . | . . . . Triggered . | . . . . Disarmed . | . . . . Reprogrammed . | . . . . Reused 1 | . . . 1 Traps Extracted . | . . . . Installed 1 | . . . 1 Triggered . | . . . . Most Traps Carried 2 | . . . 2 Machines | -11 -10 -10 -10 ---------- Run | Yrd Mat Min Sub Machines Disabled 2 | . . . 2 Max in Single Turn 1 | . . . 1 Machines Repaired . | . . . . Machines Dismantled . | . . . . Machines Sabotaged . | . . . . Overloaded Fab Kills . | . . . . Hacking | -11 -10 -10 -10 --------- Run | Yrd Mat Min Sub Machines Accessed 5 | . 5 . . Terminals 5 | . 5 . . Fabricators . | . . . . Repair Stations . | . . . . Recycling Units . | . . . . Scanalyzers . | . . . . Garrison Access . | . . . . Total Hacks 14 | . 14 . . Successful . | . . . . Failed 14 | . 14 . . Catastrophic 2 | . 2 . . Database Lockouts . | . . . . Manual 7 | . 7 . . Terminals 14 | . 14 . . Fabricators . | . . . . Repair Stations . | . . . . Recycling Units . | . . . . Scanalyzers . | . . . . Garrison Access . | . . . . Terminal Hacks . | . . . . Fabricator Hacks . | . . . . Repair Station Hacks . | . . . . Recycling Unit Hacks . | . . . . Scanalyzer . | . . . . Garrison Access Hacks . | . . . . Unauthorized Hacks . | . . . . Terminals . | . . . . Fabricators . | . . . . Repair Stations . | . . . . Recycling Units . | . . . . Scanalyzers . | . . . . Garrison Access . | . . . . Data Cores Recovered . | . . . . Used . | . . . . Hacking Detections 5 | . 5 . . Full Trace Events 2 | . 2 . . Feedback Events . | . . . . Feedback Blocked . | . . . . Robot Schematics Acquired . | . . . . Robots Built . | . . . . Authchips . | . . . . Time . | . . . . Total Robot Build Rating . | . . . . Part Schematics Acquired . | . . . . Parts Built . | . . . . Authchips . | . . . . Time . | . . . . Total Part Build Rating . | . . . . Parts Repaired . | . . . . Time . | . . . . Parts Recycled . | . . . . Recycled Matter . | . . . . Retrieved Matter . | . . . . Retrieved Components . | . . . . Parts Scanalyzed . | . . . . Part Schematics Acquired . | . . . . Parts Damaged . | . . . . Bothacking | -11 -10 -10 -10 ------------ Run | Yrd Mat Min Sub Used RIF Installer . | . . . . Robots Hacked . | . . . . Non-combat . | . . . . Combat . | . . . . Robot Hacks Applied . | . . . . Relay Couplers Released . | . . . . Fabnet Peak Effective % . | . . . . Robots Rewired . | . . . . Allies Hacked . | . . . . Hacks Repelled . | . . . . Allies | -11 -10 -10 -10 -------- Run | Yrd Mat Min Sub Total Allies 1 | . . 1 . Largest Group 1 | . . 1 1 Highest-Rated Group 31 | . . 31 31 Highest-Rated Ally 31 | . . 31 31 Total Orders . | . . . . Ally Attacks 5 | . . . 5 Total Damage 65 | . . . 65 Kills 1 | . . . 1 Allies Corrupted . | . . . . Allies Melted . | . . . . Intel | -11 -10 -10 -10 ------- Run | Yrd Mat Min Sub Active Infowar (turns) 23 | 18 5 . . Seismic 23 | 18 5 . . Robot Analysis Total . | . . . . Derelict Logs Recovered 1 | . . . 1 Drone Launches . | . . . . Drone Recoveries . | . . . . Exploration | -11 -10 -10 -10 ------------- Run | Yrd Mat Min Sub Turns Passed 3778 | 97 1258 216 2207 Spaces Moved 1880 | 55 481 108 1236 Core 14 | 14 . . . Treads 1819 | . 475 108 1236 Legs 47 | 41 6 . . Wheels . | . . . . Hover . | . . . . Flight . | . . . . Fastest Speed 50 | 50 120 160 160 Average Speed 161 | 109 159 160 164 Slowest Speed 320 | 120 190 160 320 Overloaded Moves . | . . . . Propulsion Burnouts . | . . . . Robots Hopped . | . . . . Potential Cave-ins . | . . . . Cave-ins Triggered . | . . . . Exploration Rate (%) 46 | 4 77 23 82 Regions Visited 3 Branch Regions 2 Pre-discovered Areas 1 | . . . 1 Known Exits Taken . | . . . . Unknown Exits Taken 3 | 1 1 1 . Scrap Searched 10 | . . . 10 Spaces Dug . | . . . . Terrain Destroyed 6 | . . . 6 Melee . | . . . . Projectile 4 | . . . 4 AOE 2 | . . . 2 Terrain Rammed . | . . . . Walls Destroyed . | . . . . Machines Disabled . | . . . . Actions | -11 -10 -10 -10 --------- Run | Yrd Mat Min Sub Total 2435 | 72 893 151 1319 Wait 396 | . 343 44 9 Move 1877 | 54 480 107 1236 Hop . | . . . . Pick Up 17 | 2 9 . 6 Fast Attach 15 | 7 6 . 2 Attach 5 | . 1 . 4 Detach 2 | . 2 . . Swap 5 | . 4 . 1 Drop 14 | . 7 . 7 Fire 103 | 9 41 . 53 Melee . | . . . . Ram . | . . . . Kick . | . . . . Crush . | . . . . Escape Stasis . | . . . . Rewire . | . . . . Trap 1 | . . . 1 Miscellaneous . | . . . . Route ------- -11/Scrapyard -10/Materials (discovered 4 exits: [*Mat x3] / [*Min]) -10/Mines -10/Subcaves (discovered 2 exits: [*Mat] / [*Rec]) History --------- Turn | Location | Event 18 | -11/Scrapyard | Discovered new exit (range 15) 98 | -11/Scrapyard | Entered Materials 313 | -10/Materials | Build established: Mutant 768 | -10/Materials | Discovered new exit (range 4) 798 | -10/Materials | Derelicts attacked the area 852 | -10/Materials | Discovered new exit (range 12) 934 | -10/Materials | Discovered new exit (range 15) 1156 | -10/Materials | Discovered new exit (range 5) 1356 | -10/Materials | Entered Mines 1398 | -10/Mines | Discovered new exit (range 6) 1471 | -10/Mines | Received a Mining Laser from a helpful Derelict 1572 | -10/Mines | Entered Subcaves 1572 | -10/Subcaves | Accompanied by 1 ally 1573 | -10/Subcaves | Approached by a straggling Scientist 1740 | -10/Subcaves | A swath of the cavern ceiling suddenly collapsed 1817 | -10/Subcaves | Shifting Twisted Machinery released Riot Gun 1817 | -10/Subcaves | Shifting Twisted Machinery released Sub. Optics 1913 | -10/Subcaves | Shifting Twisted Machinery released Riot Gun 2022 | -10/Subcaves | Shifting Twisted Machinery released Battle Cannon 2610 | -10/Subcaves | Discovered new exit (range 10) 2639 | -10/Subcaves | Core integrity fell below 50% 2669 | -10/Subcaves | Lost 3 parts (1n2w) 2815 | -10/Subcaves | Shifting Twisted Machinery released Battle Rifle 2839 | -10/Subcaves | Shifting Twisted Machinery released Shrapnel Trap 3418 | -10/Subcaves | Discovered new exit (range 8) 3565 | -10/Subcaves | Core integrity fell below 20% 3779 | -10/Subcaves | Destroyed by Piercing Trap Last Messages --------------- 03541_ System corrupted: Component data lost. 03557_ Triggered Piercing Trap. 03557_ Spikes shoot up from the floor. 03557_ Critical hit (Impale). 03564_ SB-P2O(R): "SUBMAD!" 03565_ SB-P2O(R) destroyed. 03579_ System corrupted: Substantial component data lost. 03655_ Dropped Piercing Trap. 03656_ Installed Piercing Trap. 03666_ UJ-FA6(O) collects matter. 03672_ L9-PQW(R) suffers critical hit (Destroy). 03675_ Imp. Treads destroyed. 03675_ Slug penetrates L9-PQW(R). 03675_ L9-PQW(R) knocked back. 03680_ L9-PQW(R) destroyed. 03696_ Acquired 21 matter. 03732_ Subatomizers dissect the Sub. Optics. 03774_ /VG|Y06H6R=PXMVHFSNKCW5G6&EF3L SOM>EI 03779_ Triggered Piercing Trap. 03779_ Spikes shoot up from the floor. Map ----- +----------------------------------------------------+ | ?????????## ####### ##?????????????????? | | ?????????# ## ### #??????????????????? | | ?????????# & !=|#??????????????????? | | ?????????# [ [&#####??????????????? | | ?????????# ## ### ## [%= "##""##"????????? | | ??????????# ## """""????????? | | ??????????# # ## / #"##"????????? | | ??????????# # # ####"## ##????????????? | | ??????????# ## ##??##########?????????????? | | ??????????# *%[ ##?????????????????????????? | | ??????????######%& #?????????????????????????? | | ????????????#??#=!] #?????????????????????????? | | ????????????# ## ##?????????????????????????? | | ????????????# #######????????????????????? | | ????????????# ## #????????????????????? | | ???????????## #????????????????????? | | ???????????# | ##????????????????????? | | ??????????#"" ## #?????????????????????? | | ?????????#"" ### #?????????????????????? | | ?????????#""" ??# = #?????????????????????? | | ??????????""" ??# #?????????????????????? | | ???????????"" & ??## # #?????????????????????? | | ??????????? " & &???# #?????????????????????? | | ??????????? ""#& ???# ## ##???????######????????? | | ??????????? """"??##^ ^#???????# ###??????? | | ????????????? #""??# @^#??????## ##?????? | | ?????????????# ????## ^ ##??????# #####?? | | ?????????????## "???#### ##??????## #?? | | ????????????## ?#### ##?????## ##?? | | ????????????#"" # # #?????# ####??? | | ????????????# " ####### #?????? | | ????????????#"" ## # ###???? | | ??????????# ### ## #???? | | ??????????# ????# ## #???? | | ?????????? ??????# # ##???? | | ??????????? ????????# ### ####????? | | ?????????????????????# ###### ##???????? | | ?????????????????????### #???# ####??????? | | ???????????????????????#####???# ## #??????? | | ???????????????????????????????# #??????? | | ???????????????????????????????### #??????? | | ?????????????????????????????###### ##??????? | | ?????????????????????????????# ### ##???????? | | ??????????????????# ?????????# ##????????? | | ?????????????????? ???????# #?????????? | | ????????????????? ###?## ##?????????? | | ?????????????????? ## ###??????????? | | ?????????????????????# ##???????????? | | ??????????????????????#### #???????????? | | ????????????????????##???# ## #???????????? | +----------------------------------------------------+ Best States ------------- Heat Dissipation 25 Energy Generation 12 Energy Capacity 265 Matter Stores 300 Matter Capacity 300 Sight Range 16 Terrain Scan Density 10 Evasion (%) 55 Recoil Reduction 2 Item Schematics ----------------- None Robot Schematics ------------------ None Fabricated ------------ Nothing Repaired ---------- Nothing Alien Tech Used ----------------- None Achievements -------------- None Challenges ------------ None Game ------ Seed ScatterPlexusSlayer Manual? 0 Play Time 00:18:03 Cumulative 319.3 hours Start 2025.08.09 @ 12:50:54 End 2025.08.09 @ 13:07:27 Sessions 1 Manual Loads 0 Difficulty Rogue Special Mode None Game No. 137 Rogue 66 Adventurer 68 Explorer 3 Win Type - Total 25 Types 16/2/1/4/1/0/0/0/0/1 Lore% 76 Gallery% 74 Achievement% 71 Wizard Run 0 Options --------- Layout 0 ASCII 0 Keyboard 0 Movement Numpad Keybinds 0 Fullscreen 1 Font 24/Smallcaps Map View 76x50 Zoom Use 0% Tactical HUD 1 Map Filters NONE Filters NONE Steam 1 RUN: 83519b44-3653-4344-bf4e-46af30db8ce2